fUST/lending_fUST_20260702
["ID","MTS","AMOUNT","RATE_DAILY","PERIOD"]
[426845029,1782942533000,316.57913493,8.63e-05,7]
[426845031,1782942582000,1303.14765405,0.0001261,2]
[426845032,1782942582000,1542.42999933,0.00013,2]
[426845076,1782942634000,-762.31993119,0.000162,2]
[426845078,1782942634000,-917.18311553,0.000162,2]
[426845080,1782942634000,-8158.0242583,0.00017,2]
[426845079,1782942634000,-756.20169487,0.00017,2]
[426845084,1782942634000,-637.846,0.00017,2]
[426845082,1782942634000,-1820.60636685,0.00017,2]
[426845083,1782942634000,-676.32948071,0.00017,2]
[426845077,1782942634000,-509.2387151,0.000162,2]
[426845081,1782942634000,-1430.61596826,0.00017,2]
[426845096,1782942639000,-448.524,0.00017,2]
[426845101,1782942639000,-796.51025489,0.00018,2]
[426845099,1782942639000,-201.6193293,0.00018,2]
[426845100,1782942639000,-2065.16455325,0.00018,2]
[426845097,1782942639000,-86233.01257892,0.00017,2]
[426845098,1782942639000,-2177.10027193,0.000176,2]
[426845115,1782942641000,-1813.42407202,0.00018,2]
[426845114,1782942641000,-873.80412279,0.00018,2]
[426845172,1782942644000,-500.0,0.00027899,2]
[426845157,1782942644000,-160.0,0.00027749,2]
[426845151,1782942644000,-837.34314673,0.00027158,2]
[426845153,1782942644000,-287.32996274,0.00027158,2]
[426845170,1782942644000,-500.0,0.00027899,2]
[426845155,1782942644000,-328.04872317,0.00027158,2]
[426845168,1782942644000,-500.0,0.00027899,2]
[426845166,1782942644000,-500.0,0.00027899,2]
[426845162,1782942644000,-500.0,0.00027899,2]
[426845150,1782942644000,-582.07036671,0.00027158,2]
[426845164,1782942644000,-500.0,0.00027899,2]
[426845160,1782942644000,-203.73538821,0.00027899,2]
[426845159,1782942644000,-500.0,0.00027899,2]
[426845148,1782942644000,-372.52503469,0.00027158,2]
[426845143,1782942644000,-200.0,0.00025,2]
[426845139,1782942644000,-16689.56441511,0.0001958,2]
[426845142,1782942644000,-503.86112664,0.00024,2]
[426845140,1782942644000,-328.66771613,0.0002,2]
[426845136,1782942644000,-500.0,0.00019579,2]
[426845145,1782942644000,-325.95940536,0.00027158,2]
[426845141,1782942644000,-846.20289027,0.0002,30]
[426845137,1782942644000,-500.0,0.00019579,2]
[426845135,1782942644000,-1002.72164066,0.00018,2]
[426845134,1782942644000,-443.0,0.00018,2]
[426845133,1782942644000,-635.60939374,0.00018,2]
[426845173,1782942644000,-500.0,0.00027899,2]
[426845175,1782942644000,-500.0,0.00027899,2]
[426845138,1782942644000,-500.0,0.00019579,2]
[426845179,1782942644000,-500.0,0.00027899,2]
[426845202,1782942644000,-504.22121283,0.00028296,2]
[426845200,1782942644000,-500.0,0.00028296,2]
[426845201,1782942644000,-575.41076325,0.00028296,2]
[426845194,1782942644000,-500.0,0.00027899,2]
[426845193,1782942644000,-650.0,0.00027899,2]
[426845191,1782942644000,-300.0,0.00027899,2]
[426845203,1782942644000,-824.85353375,0.00028297,2]
[426845196,1782942644000,-519.3314,0.000279,2]
[426845192,1782942644000,-500.0,0.00027899,2]
[426845195,1782942644000,-209.03030448,0.000279,3]
[426845189,1782942644000,-500.0,0.00027899,2]
[426845190,1782942644000,-500.0,0.00027899,2]
[426845188,1782942644000,-500.0,0.00027899,2]
[426845199,1782942644000,-1198.57551393,0.00028296,2]
[426845186,1782942644000,-500.0,0.00027899,2]
[426845197,1782942644000,-1903.80350999,0.00028296,2]
[426845180,1782942644000,-500.0,0.00027899,2]
[426845178,1782942644000,-500.0,0.00027899,2]
[426845176,1782942644000,-184.7287382,0.00027899,2]
[426845181,1782942644000,-500.0,0.00027899,2]
[426845182,1782942644000,-500.0,0.00027899,2]
[426845177,1782942644000,-500.0,0.00027899,2]
[426845183,1782942644000,-500.0,0.00027899,2]
[426845185,1782942644000,-500.0,0.00027899,2]
[426845184,1782942644000,-500.0,0.00027899,2]
[426845174,1782942644000,-500.0,0.00027899,2]
[426845187,1782942644000,-500.0,0.00027899,2]
[426845198,1782942644000,-317.989,0.00028296,2]
[426845321,1782942647000,-1061.3633948,0.00028297,2]
[426845317,1782942647000,-209.34914696,0.00027297,2]
[426845319,1782942647000,-293.79279429,0.00028297,2]
[426845368,1782942648000,-13554.37727593,0.00028297,2]
[426845479,1782942882000,517.66628956,0.00013,2]
[426845478,1782942882000,1303.14765405,0.0001261,2]
[426845480,1782942933000,187.0,0.0002558,120]
[426845487,1782943173000,496.21678809,0.0001,2]
[426845489,1782943310000,-500.0,0.00021917,2]
[426845490,1782943327000,-500.0,0.00021917,2]
[426845647,1782943843000,-877.55025624,0.00027765,5]
[426845638,1782943843000,-175.0,0.00023,7]
[426845641,1782943843000,-269.14,0.00025931,2]
[426845640,1782943843000,-181.25604121,0.0002572,2]
[426845642,1782943843000,-156.33800495,0.00026703,5]
[426845639,1782943843000,-534.4834102,0.0002452,2]
[426845643,1782943843000,-256.61526978,0.00026869,7]
[426845644,1782943843000,-173.5413664,0.00027397,7]
[426845645,1782943843000,-183.67359576,0.00027499,14]
[426845646,1782943843000,-122.44974376,0.00027765,5]
[426845649,1782943843000,-500.0,0.00028,5]
[426845650,1782943843000,-150.0,0.00028175,2]
[426845648,1782943843000,-160.0,0.00027881,2]
[426845659,1782943843000,-471.65361063,0.00028397,7]
[426845657,1782943843000,-500.0,0.00028397,7]
[426845656,1782943843000,-500.0,0.00028397,7]
[426845658,1782943843000,-500.0,0.00028397,2]
[426845654,1782943843000,-503.41706117,0.00028397,7]
[426845653,1782943843000,-500.0,0.00028397,7]
[426845652,1782943843000,-200.35,0.00028297,2]
[426845651,1782943843000,-256.61526978,0.00028175,7]
[426845655,1782943843000,-509.58,0.00028397,2]
[426845781,1782943926000,209.0,0.00028767,120]
[426845785,1782944193000,166.66666667,0.0001,29]
[426845786,1782944544000,179.0,0.00028164,120]
[426845879,1782945042000,-500.0,0.0002686,2]
[426845877,1782945042000,-500.0,0.0002686,2]
[426845882,1782945042000,-500.0,0.0002686,2]
[426845884,1782945042000,-638.23936446,0.0002686,2]
[426845881,1782945042000,-500.0,0.0002686,2]
[426845896,1782945042000,-500.0,0.00027998,2]
[426845907,1782945042000,-500.0,0.00027998,2]
[426845912,1782945042000,-500.0,0.00027998,2]
[426845903,1782945042000,-500.0,0.00027998,2]
[426845901,1782945042000,-500.0,0.00027998,2]
[426845913,1782945042000,-500.0,0.00027998,2]
[426845909,1782945042000,-444.31011673,0.00027998,2]
[426845893,1782945042000,-500.0,0.00027998,2]
[426845914,1782945042000,-550.0,0.00027998,2]
[426845899,1782945042000,-500.0,0.00027998,2]
[426845876,1782945042000,-229.99,0.00026259,3]
[426845870,1782945042000,-4457.33970069,0.0002572,2]
[426845887,1782945042000,-1974.33685536,0.00027074,2]
[426845910,1782945042000,-500.0,0.00027998,2]
[426845861,1782945042000,-275.41984581,0.0002572,2]
[426845863,1782945042000,-495.75572247,0.0002572,2]
[426845864,1782945042000,-881.34350661,0.0002572,2]
[426845872,1782945042000,-201.66460903,0.0002572,2]
[426845873,1782945042000,-362.99629626,0.0002572,2]
[426845874,1782945042000,-645.32674891,0.0002572,2]
[426845865,1782945042000,-1377.09922907,0.0002572,2]
[426845866,1782945042000,-1983.02288986,0.0002572,2]
[426845868,1782945042000,-3525.37402642,0.0002572,2]
[426845875,1782945042000,-1008.32304517,0.0002572,2]
[426845886,1782945042000,-1451.98518504,0.00027074,2]
[426845888,1782945042000,-160.0,0.00027891,2]
[426845889,1782945042000,-500.0,0.00027998,2]
[426845867,1782945042000,-2699.11448898,0.0002572,2]
[426845905,1782945042000,-500.0,0.00027998,2]
[426845944,1782945042000,-500.0,0.00028498,2]
[426845908,1782945042000,-500.0,0.00027998,2]
[426845933,1782945042000,-629.817895,0.00028399,7]
[426845932,1782945042000,-629.817895,0.00028399,7]
[426845936,1782945042000,-151.0,0.00028399,7]
[426845937,1782945042000,-151.0,0.00028399,7]
[426845934,1782945042000,-629.817895,0.00028399,7]
[426845935,1782945042000,-629.817895,0.00028399,7]
[426845930,1782945042000,-500.0,0.00028398,7]
[426845943,1782945042000,-500.0,0.00028498,2]
[426845942,1782945042000,-500.0,0.00028498,2]
[426845946,1782945042000,-500.0,0.00028498,7]
[426845945,1782945042000,-593.97727186,0.00028498,7]
[426845941,1782945042000,-160.0,0.00028399,2]
[426845948,1782945042000,-151.0,0.00028499,7]
[426845911,1782945042000,-500.0,0.00027998,2]
[426845940,1782945042000,-160.0,0.00028399,2]
[426845929,1782945042000,-500.0,0.00028398,7]
[426845947,1782945042000,-500.0,0.00028498,7]
[426845927,1782945042000,-576.07139346,0.00028398,7]
[426845915,1782945042000,-500.0,0.00027998,2]
[426845931,1782945042000,-561.66797708,0.00028399,2]
[426845916,1782945042000,-500.0,0.00027998,2]
[426845918,1782945042000,-151.0,0.00028298,7]
[426845917,1782945042000,-2915.862437,0.00028,2]
[426845920,1782945042000,-151.0,0.00028298,7]
[426845921,1782945042000,-2970.434139,0.00028298,7]
[426845919,1782945042000,-151.0,0.00028298,7]
[426845924,1782945042000,-2970.434139,0.00028298,7]
[426845925,1782945042000,-151.0,0.00028298,7]
[426845926,1782945042000,-500.0,0.00028398,2]
[426845939,1782945042000,-417.15472785,0.00028399,2]
[426845923,1782945042000,-2970.434139,0.00028298,7]
[426845938,1782945042000,-160.0,0.00028399,2]
[426845922,1782945042000,-2970.434139,0.00028298,7]
[426845928,1782945042000,-636.53751737,0.00028398,7]
[426845982,1782945043000,-151.0,0.00028499,7]
[426845983,1782945043000,-151.0,0.00028499,7]
[426845980,1782945043000,-160.891145,0.00028499,7]
[426845981,1782945043000,-151.0,0.00028499,7]
[426845989,1782945043000,-151.0,0.00028499,7]
[426845979,1782945043000,-151.0,0.00028499,7]
[426845990,1782945043000,-268.899629,0.00028499,7]
[426845986,1782945043000,-151.0,0.00028499,7]
[426845972,1782945043000,-629.817895,0.00028499,7]
[426845978,1782945043000,-151.0,0.00028499,7]
[426845984,1782945043000,-151.0,0.00028499,7]
[426846001,1782945043000,-2970.434139,0.00028499,7]
[426845988,1782945043000,-151.0,0.00028499,7]
[426845987,1782945043000,-151.0,0.00028499,7]
[426845991,1782945043000,-2970.434139,0.00028499,7]
[426845993,1782945043000,-2970.434139,0.00028499,7]
[426845994,1782945043000,-2970.434139,0.00028499,7]
[426846002,1782945043000,-2970.434139,0.00028499,7]
[426845997,1782945043000,-2970.434139,0.00028499,7]
[426845995,1782945043000,-2970.434139,0.00028499,7]
[426846000,1782945043000,-2970.434139,0.00028499,7]
[426845973,1782945043000,-629.817895,0.00028499,7]
[426845985,1782945043000,-151.0,0.00028499,7]
[426845977,1782945043000,-151.0,0.00028499,7]
[426845956,1782945043000,-151.0,0.00028499,7]
[426845974,1782945043000,-629.817895,0.00028499,7]
[426845949,1782945043000,-151.0,0.00028499,7]
[426845950,1782945043000,-167.578131,0.00028499,7]
[426845951,1782945043000,-151.0,0.00028499,7]
[426845964,1782945043000,-629.817895,0.00028499,7]
[426845953,1782945043000,-157.914151,0.00028499,7]
[426845963,1782945043000,-629.817895,0.00028499,7]
[426845952,1782945043000,-157.454276,0.00028499,7]
[426845955,1782945043000,-151.0,0.00028499,7]
[426845954,1782945043000,-151.0,0.00028499,7]
[426845957,1782945043000,-151.0,0.00028499,7]
[426845969,1782945043000,-629.817895,0.00028499,7]
[426845962,1782945043000,-629.817895,0.00028499,7]
[426845959,1782945043000,-629.817895,0.00028499,7]
[426845960,1782945043000,-629.817895,0.00028499,7]
[426845961,1782945043000,-629.817895,0.00028499,7]
[426845966,1782945043000,-629.817895,0.00028499,7]
[426845968,1782945043000,-629.817895,0.00028499,7]
[426845967,1782945043000,-629.817895,0.00028499,7]
[426845965,1782945043000,-629.817895,0.00028499,7]
[426845976,1782945043000,-151.0,0.00028499,7]
[426845970,1782945043000,-629.817895,0.00028499,7]
[426845975,1782945043000,-629.817887,0.00028499,7]
[426845958,1782945043000,-230.97372,0.00028499,7]
[426845999,1782945043000,-2970.434139,0.00028499,7]
[426845992,1782945043000,-2970.434139,0.00028499,7]
[426845996,1782945043000,-2970.434139,0.00028499,7]
[426846025,1782945043000,-200.0,0.00028623,2]
[426846031,1782945043000,-335.57299956,0.00028623,2]
[426846040,1782945043000,-500.0,0.00028623,2]
[426846039,1782945043000,-500.0,0.00028623,2]
[426846041,1782945043000,-500.0,0.00028623,2]
[426846042,1782945043000,-500.0,0.00028623,2]
[426846030,1782945043000,-200.0,0.00028623,2]
[426846032,1782945043000,-500.0,0.00028623,2]
[426846037,1782945043000,-500.0,0.00028623,2]
[426846036,1782945043000,-500.0,0.00028623,2]
[426846023,1782945043000,-38890.99759505,0.000286,20]
[426846034,1782945043000,-500.0,0.00028623,2]
[426846035,1782945043000,-500.0,0.00028623,2]
[426846038,1782945043000,-500.0,0.00028623,2]
[426846043,1782945043000,-500.0,0.00028623,2]
[426846046,1782945043000,-220.44,0.00028623,2]
[426846047,1782945043000,-417.15472785,0.00028624,30]
[426846044,1782945043000,-500.0,0.00028623,2]
[426846049,1782945043000,-417.15472785,0.00028624,7]
[426846050,1782945043000,-160.0,0.00028624,7]
[426846051,1782945043000,-327127.34572645,0.00028624,30]
[426846048,1782945043000,-160.0,0.00028624,7]
[426846033,1782945043000,-500.0,0.00028623,2]
[426846027,1782945043000,-200.0,0.00028623,2]
[426846045,1782945043000,-500.0,0.00028623,2]
[426846019,1782945043000,-500.0,0.00028599,2]
[426846020,1782945043000,-500.0,0.00028599,7]
[426846004,1782945043000,-2970.434139,0.00028499,7]
[426846015,1782945043000,-160.0,0.00028592,2]
[426846014,1782945043000,-500.0,0.00028585,7]
[426846005,1782945043000,-2970.434139,0.00028499,7]
[426846006,1782945043000,-2970.43413405,0.00028499,7]
[426846016,1782945043000,-500.0,0.00028597,7]
[426846003,1782945043000,-2970.434139,0.00028499,7]
[426846008,1782945043000,-160.0,0.00028499,7]
[426846009,1782945043000,-151.0,0.00028499,7]
[426846010,1782945043000,-287.214382,0.00028499,7]
[426845998,1782945043000,-2970.434139,0.00028499,7]
[426846007,1782945043000,-160.0,0.00028499,7]
[426846024,1782945043000,-500.0,0.00028622,2]
[426846021,1782945043000,-500.0,0.00028599,7]
[426846028,1782945043000,-200.0,0.00028623,2]
[426846022,1782945043000,-156.10317444,0.00028599,7]
[426846026,1782945043000,-200.0,0.00028623,2]
[426846017,1782945043000,-500.0,0.00028598,2]
[426846013,1782945043000,-500.0,0.00028585,2]
[426846012,1782945043000,-1500.0,0.000285,2]
[426846011,1782945043000,-448.75,0.000285,3]
[426846018,1782945043000,-500.0,0.00028599,2]
[426846029,1782945043000,-200.0,0.00028623,2]
[426846105,1782945130000,-502.98,0.00018863,7]
[426846106,1782945138000,1589.586,0.000261,2]
[426846107,1782945139000,1589.58,0.000261,2]
[426846109,1782945150000,2431.07684686,0.00028298,120]
[426846110,1782945163000,-503.41706117,0.00027073,2]
[426846111,1782945356000,180.0,0.00028767,120]
[426846115,1782945685000,1047.0,0.0002,120]
[426846117,1782945930000,200.35,0.000137,2]
[426846119,1782946000000,-170.20443837,0.00024,3]
[426846118,1782946000000,-417.15472785,0.00024,3]
[426846121,1782946000000,-509.58,0.00027073,2]
[426846122,1782946000000,-500.0,0.00027073,2]
[426846123,1782946000000,-471.65361063,0.00027073,2]
[426846120,1782946000000,-160.0,0.00025782,2]
[426846125,1782946000000,-187.154702,0.00027427,2]
[426846126,1782946000000,-256.61526978,0.00027572,7]
[426846127,1782946000000,-2229.851,0.00028025,2]
[426846124,1782946000000,-500.0,0.00027073,2]
[426846130,1782946000000,-202.576,0.00028025,2]
[426846129,1782946000000,-1860.178,0.00028025,2]
[426846132,1782946000000,-217.50029529,0.00028297,7]
[426846133,1782946000000,-500.0,0.00028297,7]
[426846131,1782946000000,-446.0,0.00028025,2]
[426846134,1782946000000,-500.0,0.0002832,2]
[426846136,1782946000000,-500.0,0.0002832,2]
[426846137,1782946000000,-4839.08849908,0.00028321,2]
[426846128,1782946000000,-1421.0,0.00028025,2]
[426846135,1782946000000,-500.0,0.0002832,2]
[426846139,1782946112000,43080.925114,7.6e-05,2]
[426846140,1782946119000,10462.16111191,0.00012,2]
[426846205,1782946240000,-1708.31577574,0.0002,20]
[426846224,1782946242000,-580.67958368,0.00021,5]
[426846223,1782946242000,-13766.45657663,0.0002,20]
[426846225,1782946242000,-321.33772513,0.00021,5]
[426846242,1782946243000,-1820.950727,0.00021,5]
[426846251,1782946509000,287.0,0.00025842,120]
[426846252,1782946530000,176.0,0.00024598,120]
[426846253,1782946532000,176.0,0.00025828,120]
[426846255,1782946774000,188.3143385,0.0001,2]
[426846256,1782946809000,201.0,0.00025817,120]
[426846257,1782946833000,182.50239902,0.0001,2]
[426846258,1782946893000,181.89476832,0.0001,2]
[426846259,1782946953000,181.69222475,0.0001,2]
[426846260,1782947013000,181.69222476,0.0001,29]
[426846579,1782947440000,-503.41706117,0.00019895,2]
[426846577,1782947440000,-176.94445854,0.00019691,2]
[426846581,1782947440000,-500.0,0.00019895,2]
[426846592,1782947440000,-500.0,0.00024649,2]
[426846583,1782947440000,-396.5219332,0.00021,5]
[426846585,1782947440000,-151.5509968,0.000215,2]
[426846596,1782947440000,-1598.75674523,0.0002465,2]
[426846586,1782947440000,-500.0,0.00021917,2]
[426846588,1782947440000,-450.0,0.000234,2]
[426846590,1782947440000,-176.991,0.0002399,5]
[426846594,1782947440000,-8719.12376583,0.0002465,2]
[426846765,1782947444000,-355.0,0.0002465,2]
[426846780,1782947706000,176.0,0.00024585,120]
[426846781,1782947708000,176.0,0.00025814,120]
[426846782,1782947709000,176.0,0.00027105,120]
[426846830,1782948632000,-318.39,0.00020094,2]
[426846836,1782948632000,-318.39,0.0002089,2]
[426846832,1782948632000,-192.56591022,0.00020348,2]
[426846828,1782948632000,-318.39,0.00019696,2]
[426846834,1782948632000,-318.39,0.00020492,2]
[426846824,1782948632000,-318.39,0.000189,2]
[426846826,1782948632000,-318.39,0.00019298,2]
[426846838,1782948632000,-1714.81425,0.00022897,2]
[426846840,1782948632000,-166.77,0.0002386,2]
[426846850,1782948632000,-13153.93707122,0.0002424,2]
[426846844,1782948632000,-176.99107237,0.00023991,5]
[426846846,1782948632000,-300.0,0.00024239,2]
[426846854,1782948632000,-200.36993229,0.00024339,2]
[426846848,1782948632000,-208.28669447,0.0002424,2]
[426846856,1782948632000,-377.125444,0.0002434,2]
[426846852,1782948632000,-3422.50462371,0.0002424,2]
[426846842,1782948632000,-1714.81425,0.00023861,2]
[426847003,1782948639000,-500.0,0.0002434,2]
[426846999,1782948639000,-500.0,0.0002434,2]
[426846995,1782948639000,-500.0,0.0002434,2]
[426846985,1782948639000,-500.0,0.0002434,2]
[426846993,1782948639000,-500.0,0.0002434,2]
[426847001,1782948639000,-426.56421416,0.0002434,2]
[426846991,1782948639000,-500.0,0.0002434,2]
[426846997,1782948639000,-500.0,0.0002434,2]
[426847010,1782948639000,-500.0,0.0002434,2]
[426847015,1782948639000,-500.0,0.0002434,2]
[426847012,1782948639000,-500.0,0.0002434,2]
[426847005,1782948639000,-500.0,0.0002434,2]
[426847013,1782948639000,-500.0,0.0002434,2]
[426847017,1782948639000,-500.0,0.0002434,2]
[426847019,1782948639000,-500.0,0.0002434,2]
[426847021,1782948639000,-500.0,0.0002434,2]
[426847025,1782948639000,-500.0,0.0002434,2]
[426847023,1782948639000,-500.0,0.0002434,2]
[426847008,1782948639000,-500.0,0.0002434,2]
[426846989,1782948639000,-500.0,0.0002434,2]
[426847037,1782948639000,-500.0,0.0002434,2]
[426846982,1782948639000,-500.0,0.0002434,2]
[426846950,1782948639000,-122.874556,0.0002434,2]
[426846952,1782948639000,-500.0,0.0002434,2]
[426846956,1782948639000,-500.0,0.0002434,2]
[426846966,1782948639000,-500.0,0.0002434,2]
[426846954,1782948639000,-500.0,0.0002434,2]
[426846958,1782948639000,-446.01708172,0.0002434,2]
[426846960,1782948639000,-500.0,0.0002434,2]
[426846962,1782948639000,-500.0,0.0002434,2]
[426846980,1782948639000,-500.0,0.0002434,2]
[426846964,1782948639000,-500.0,0.0002434,2]
[426846969,1782948639000,-500.0,0.0002434,2]
[426846971,1782948639000,-500.0,0.0002434,2]
[426846975,1782948639000,-500.0,0.0002434,2]
[426846973,1782948639000,-500.0,0.0002434,2]
[426846976,1782948639000,-500.0,0.0002434,2]
[426846978,1782948639000,-500.0,0.0002434,2]
[426846984,1782948639000,-498.50949504,0.0002434,2]
[426846987,1782948639000,-500.0,0.0002434,2]
[426846967,1782948639000,-500.0,0.0002434,2]
[426847035,1782948639000,-500.0,0.0002434,2]
[426847103,1782948639000,-4377.5452128,0.0002465,2]
[426847029,1782948639000,-500.0,0.0002434,2]
[426847082,1782948639000,-500.0,0.0002434,2]
[426847078,1782948639000,-500.0,0.0002434,2]
[426847080,1782948639000,-500.0,0.0002434,2]
[426847074,1782948639000,-500.0,0.0002434,2]
[426847086,1782948639000,-500.0,0.0002434,2]
[426847093,1782948639000,-500.0,0.0002434,2]
[426847091,1782948639000,-500.0,0.0002434,2]
[426847095,1782948639000,-500.0,0.0002434,2]
[426847084,1782948639000,-500.0,0.0002434,2]
[426847097,1782948639000,-500.0,0.0002434,2]
[426847101,1782948639000,-499.99999999,0.0002434,2]
[426847106,1782948639000,-1714.81425,0.00024825,2]
[426847114,1782948639000,-7492.21258654,0.00027124,2]
[426847112,1782948639000,-1714.81425,0.00026753,2]
[426847104,1782948639000,-380.0,0.00024658,2]
[426847108,1782948639000,-220.07532596,0.00024887,2]
[426847110,1782948639000,-1714.81425,0.00025789,2]
[426847027,1782948639000,-500.0,0.0002434,2]
[426847099,1782948639000,-175.61768092,0.0002434,2]
[426847088,1782948639000,-500.0,0.0002434,2]
[426847076,1782948639000,-500.0,0.0002434,2]
[426847062,1782948639000,-500.0,0.0002434,2]
[426847038,1782948639000,-500.0,0.0002434,2]
[426847040,1782948639000,-500.0,0.0002434,2]
[426847044,1782948639000,-500.0,0.0002434,2]
[426847048,1782948639000,-500.0,0.0002434,2]
[426847046,1782948639000,-500.0,0.0002434,2]
[426847042,1782948639000,-500.0,0.0002434,2]
[426847056,1782948639000,-500.0,0.0002434,2]
[426847089,1782948639000,-500.0,0.0002434,2]
[426847033,1782948639000,-500.0,0.0002434,2]
[426847052,1782948639000,-500.0,0.0002434,2]
[426847058,1782948639000,-500.0,0.0002434,2]
[426847054,1782948639000,-500.0,0.0002434,2]
[426847064,1782948639000,-500.0,0.0002434,2]
[426847060,1782948639000,-500.0,0.0002434,2]
[426847066,1782948639000,-500.0,0.0002434,2]
[426847068,1782948639000,-500.0,0.0002434,2]
[426847070,1782948639000,-362.2119572,0.0002434,2]
[426847072,1782948639000,-500.0,0.0002434,2]
[426847050,1782948639000,-500.0,0.0002434,2]
[426847031,1782948639000,-500.0,0.0002434,2]
[426847187,1782948641000,-343.52382912,0.00027157,2]
[426847189,1782948641000,-1696.098,0.00027575,2]
[426847185,1782948641000,-151.129092,0.00027124,2]
[426847183,1782948641000,-9292.51580284,0.00027124,2]
[426847191,1782948641000,-571.26121008,0.00027717,2]
[426847820,1782948647000,-417.15472785,0.00028395,2]
[426847813,1782948647000,-1143.55303992,0.00027717,2]
[426847821,1782948647000,-160.0,0.0002842,2]
[426847819,1782948647000,-160.0,0.00028395,2]
[426847816,1782948647000,-150.0,0.00028025,2]
[426847817,1782948647000,-500.0,0.00028124,7]
[426847814,1782948647000,-249.20133961,0.00028,20]
[426847823,1782948647000,-673.89811442,0.000285,2]
[426847822,1782948647000,-160.0,0.0002842,2]
[426847815,1782948647000,-249.07,0.00028025,2]
[426847818,1782948647000,-170.91,0.00028235,7]
[426847878,1782948740000,500.0,0.0002434,2]
[426847879,1782949172000,166.66666667,0.0001,30]
[426847880,1782949232000,166.66666667,0.0001,30]
[426847883,1782949498000,28725.20761082,0.000283,120]
[426847886,1782949711000,21733.1846367,7.6e-05,2]
[426847887,1782949729000,632.78266194,0.000283,120]
[426847889,1782949747000,-1257.83605532,0.00024,2]
[426847888,1782949747000,-417.15472785,0.00024,3]
[426847890,1782949747000,-8.15950621,0.00024,2]
[426847910,1782949831000,-734.37942049,0.000259,2]
[426847908,1782949831000,-158.7715018,0.00025712,2]
[426847909,1782949831000,-280.0,0.00025877,2]
[426847906,1782949831000,-4821.03391782,0.00025594,2]
[426847907,1782949831000,-10691.26779658,0.00025594,2]
[426847904,1782949831000,-321.97362574,0.00024339,2]
[426847905,1782949831000,-300.0,0.00025593,2]
[426847903,1782949831000,-160.0,0.00023987,2]
[426847916,1782949838000,-265.62057951,0.000259,2]
[426847917,1782949838000,-482.05942049,0.00026,2]
[426847924,1782949840000,-517.94057951,0.00026,2]
[426847927,1782949840000,-205.31948273,0.00027209,2]
[426847926,1782949840000,-1000.0,0.00026,2]
[426847935,1782949840000,-242.3261539,0.000279,3]
[426847929,1782949840000,-150.54443797,0.00027209,2]
[426847925,1782949840000,-1000.0,0.00026,2]
[426847934,1782949840000,-173.5413664,0.00027397,7]
[426847928,1782949840000,-369.20549385,0.00027209,2]
[426847932,1782949840000,-386.72715481,0.00027209,2]
[426847931,1782949840000,-268.82935352,0.00027209,2]
[426847930,1782949840000,-172.05078626,0.00027209,2]
[426847939,1782949840000,-1341.35603944,0.00028435,2]
[426847940,1782949840000,-3917.68322215,0.000285,2]
[426847936,1782949840000,-160.0,0.00028381,2]
[426847937,1782949840000,-160.0,0.00028381,2]
[426847933,1782949840000,-166.66666667,0.00027397,30]
[426847938,1782949840000,-417.15472785,0.00028381,2]
[426847944,1782949846000,-201.692673,0.00027291,2]
[426847945,1782949846000,-554.127327,0.000285,2]